fUSD/lending_fUSD_20260207
["ID","MTS","AMOUNT","RATE_DAILY","PERIOD"]
[404681203,1770431440316,-1000.0,9.941e-05,2]
[404681204,1770431440325,-72.76917065,9.941e-05,2]
[404681205,1770431440345,-428.06913356,9.941e-05,2]
[404681206,1770431440355,-500.48740819,9.941e-05,2]
[404681207,1770431440365,-501.70914425,9.941e-05,2]
[404681208,1770431440374,-500.52759668,9.941e-05,2]
[404681209,1770431440384,-1000.0,9.941e-05,2]
[404681210,1770431440393,-157.18098015,9.941e-05,2]
[404681211,1770431440403,-500.68524113,9.941e-05,2]
[404681212,1770431440412,-505.4959813,9.941e-05,2]
[404681213,1770431440421,-500.51893008,9.941e-05,2]
[404681214,1770431440431,-1000.0,9.941e-05,2]
[404681215,1770431440440,-1000.0,9.941e-05,2]
[404681216,1770431440450,-500.59417593,9.941e-05,2]
[404681217,1770431440459,-502.44563879,9.941e-05,2]
[404681219,1770431440469,-1905.24031102,0.0001,2]
[404681220,1770431440756,-298.51436949,0.0001,2]
[404681221,1770431440779,-4937.27948311,0.0001,2]
[404681222,1770431440799,-529.89,0.00010215,2]
[404681223,1770431440815,-1680.0,0.00010331,2]
[404681224,1770431440837,-255.0,0.00010331,2]
[404681225,1770431440858,-250.0,0.00010331,2]
[404681226,1770431440882,-529.89,0.00010489,2]
[404681227,1770431440893,-652.91836923,0.00010489,2]
[404681228,1770431440905,-1000.74620686,0.00010489,2]
[404681229,1770431440917,-1500.0,0.00010489,2]
[404681230,1770431440928,-501.70650637,0.00010489,2]
[404681231,1770431440940,-1001.15447601,0.00010489,2]
[404681232,1770431440951,-1500.0,0.00010489,2]
[404681233,1770431440963,-1500.0,0.00010489,2]
[404681234,1770431440973,-1000.4722703,0.00010489,2]
[404681235,1770431440983,-948.89694636,0.00010489,2]
[404681236,1770431440994,-529.89,0.00010763,2]
[404681237,1770431441004,-1029.78273322,0.000108,2]
[404681238,1770431441014,-9442.1748218,0.00011,2]
[404681239,1770431441024,-475.51068713,0.00011037,2]
[404681240,1770431441034,-534.65816906,0.00011037,2]
[404681241,1770431441042,-1004.76214666,0.00011037,2]
[404681242,1770431441052,-1602.23292904,0.00011354,2]
[404681243,1770431441064,-2351.0,0.00011365,2]
[404681244,1770431441073,-433.0,0.00011365,2]
[404681245,1770431441082,-250.0,0.0001241,2]
[404681246,1770431441091,-3292.0,0.00012501,2]
[404681247,1770431441100,-736.0,0.00012501,2]
[404681248,1770431441109,-200.0,0.00012586,2]
[404681249,1770431441118,-151.0,0.00012885,2]
[404681250,1770431441127,-151.0,0.00012885,2]
[404681251,1770431441135,-151.0,0.00012885,2]
[404681252,1770431441145,-151.0,0.00012885,2]
[404681253,1770431441160,-151.0,0.00012885,2]
[404681254,1770431441168,-151.0,0.00012885,2]
[404681255,1770431441177,-151.0,0.00012885,2]
[404681256,1770431441186,-151.0,0.00012885,2]
[404681257,1770431441195,-151.0,0.00012885,2]
[404681258,1770431441204,-151.0,0.00012885,2]
[404681259,1770431441213,-151.0,0.00012885,2]
[404681260,1770431441223,-151.0,0.00012885,2]
[404681261,1770431441231,-151.0,0.00012885,2]
[404681262,1770431441240,-151.0,0.00012885,2]
[404681263,1770431441250,-151.0,0.00012885,2]
[404681264,1770431441259,-151.0,0.00012885,2]
[404681265,1770431441271,-151.0,0.00012885,2]
[404681266,1770431441279,-151.0,0.00012885,2]
[404681267,1770431441288,-151.0,0.00012885,2]
[404681268,1770431441297,-153.63735584,0.00012885,2]
[404681269,1770431441306,-500.0,0.00012892,2]
[404681270,1770431441316,-500.0,0.00012892,2]
[404681271,1770431441324,-307.90202521,0.00012892,2]
[404681272,1770431441333,-9999.99,0.00012893,2]
[404681273,1770431441342,-20005.56,0.00012893,2]
[404681274,1770431441351,-310.98,0.00012893,2]
[404681275,1770431441360,-1602.23292904,0.00013014,2]
[404681276,1770431441369,-500.0,0.00013108,2]
[404681277,1770431441378,-42603.07,0.00013379,2]
[404681278,1770431441387,-9139.59,0.00013436,2]
[404681279,1770431441395,-168.78,0.0001355,2]
[404681280,1770431441404,-418.06,0.00013624,2]
[404681281,1770431441413,-850.0,0.0001375,2]
[404681282,1770431441422,-166.66,0.0001376,2]
[404681283,1770431441431,-199.77,0.00013783,2]
[404681284,1770431441439,-538.8,0.00014008,2]
[404681285,1770431441448,-160.0,0.0001406,2]
[404681286,1770431441457,-166.66,0.00014214,2]
[404681287,1770431441466,-538.8,0.00014282,2]
[404681288,1770431441475,-538.8,0.00014556,2]
[404681289,1770431441484,-166.66,0.00014668,2]
[404681290,1770431441492,-1602.23292904,0.00014674,2]
[404681291,1770431441501,-500.0,0.00014772,2]
[404681292,1770431441510,-433.48116845,0.00014772,2]
[404681293,1770431441519,-3013.0,0.00014817,2]
[404681294,1770431441528,-538.8,0.0001483,2]
[404681295,1770431441537,-150.0,0.00014999,2]
[404681296,1770431441546,-250.0,0.00015,2]
[404681297,1770431441556,-4232.48570959,0.00015,2]
[404681298,1770431441565,-1742.33176359,0.00015057,2]
[404681299,1770431441578,-221.29321403,0.00015057,2]
[404681300,1770431441586,-1274.18108693,0.00015057,2]
[404681301,1770431441595,-927.03436804,0.00015057,2]
[404681302,1770431441603,-538.82,0.00015104,2]
[404681303,1770431441613,-166.66,0.00015122,2]
[404681304,1770431441622,-3266.6943336,0.00015164,2]
[404681305,1770431441631,-500.0,0.00015499,2]
[404681306,1770431441639,-506.382575,0.00015499,2]
[404681307,1770431441651,-500.0,0.00015499,2]
[404681308,1770431441660,-500.0,0.00015499,2]
[404681309,1770431441669,-166.66,0.00015576,2]
[404681310,1770431441678,-1000.0,0.000156,2]
[404681311,1770431441686,-2242.91870603,0.00015807,2]
[404681312,1770431441695,-3320.29284267,0.00016,2]
[404681313,1770431441705,-166.66,0.00016031,2]
[404681314,1770431441714,-9424.24989268,0.00016158,2]
[404681315,1770431441723,-500.0,0.00016199,2]
[404681316,1770431441732,-500.0,0.00016199,2]
[404681317,1770431441741,-157.08535246,0.00016199,2]
[404681318,1770431441749,-170150.91503439,0.000162,5]
[404681319,1770431441758,-209.40437684,0.00016258,2]
[404681320,1770431441767,-217.15233878,0.00016313,2]
[404681321,1770431441776,-1602.23292904,0.00016334,2]
[404681322,1770431441785,-9424.24989261,0.00016352,2]
[404681323,1770431441794,-225.18697532,0.00016368,2]
[404681324,1770431441803,-233.51889341,0.00016423,2]
[404681325,1770431441812,-242.15909246,0.00016478,2]
[404681326,1770431441821,-251.11897888,0.00016533,2]
[404681327,1770431441830,-9424.24989261,0.00016545,2]
[404681328,1770431441839,-260.4103811,0.00016588,2]
[404681329,1770431441848,-492.13,0.00016614,2]
[404681330,1770431441858,-270.0455652,0.00016643,2]
[404681331,1770431441867,-280.03725112,0.00016698,2]
[404681332,1770431441876,-9424.24989261,0.00016739,2]
[404681333,1770431441885,-290.39862941,0.00016753,2]
[404681334,1770431441894,-301.1433787,0.00016808,2]
[404681335,1770431441904,-285.71,0.00016888,2]
[404681336,1770431441913,-9424.24989261,0.00016932,2]
[404681337,1770431441922,-1000.0,0.00016986,2]
[404681338,1770431441931,-500.0,0.00017,2]
[404681339,1770431441940,-300.0,0.00017,2]
[404681340,1770431441950,-13610.32253285,0.00017,2]
[404681341,1770431441958,-1500.0,0.000171,2]
[404681342,1770431441969,-9424.24989261,0.00017126,2]
[404681343,1770431441979,-1000.0,0.0001726,2]
[404681344,1770431441988,-9424.24989261,0.00017319,2]
[404681345,1770431441998,-347.912,0.000174,2]
[404681346,1770431442006,-4021.812,0.000174,2]
[404681347,1770431442015,-1500.0,0.000174,2]
[404681348,1770431442025,-9424.24989261,0.00017513,2]
[404681349,1770431442033,-1000.0,0.00017534,2]
[404681350,1770431442042,-1728.27374882,0.0001764,2]
[404681351,1770431442055,-150.0,0.00017644,2]
[404681352,1770431442064,-500.0,0.00017644,2]
[404681353,1770431442073,-517.62254994,0.00017699,2]
[404681354,1770431442082,-9424.24989261,0.00017706,2]
[404681355,1770431442091,-1542.5984,0.000178,2]
[404681356,1770431442101,-402.15023,0.0001782,2]
[404681357,1770431442110,-402.15022,0.0001782,2]
[404681358,1770431442119,-728.8980298,0.00017832,2]
[404681359,1770431442128,-200.0,0.00017856,2]
[404681360,1770431442137,-551.37,0.00017886,2]
[404681361,1770431442147,-551.37,0.00017886,2]
[404681362,1770431442156,-551.37,0.00017886,2]
[404681363,1770431442165,-551.37,0.00017886,2]
[404681364,1770431442174,-551.37,0.00017886,2]
[404681365,1770431442183,-551.37,0.00017886,2]
[404681366,1770431442194,-551.37,0.00017886,2]
[404681367,1770431442203,-551.37,0.00017886,2]
[404681368,1770431442211,-551.37,0.00017886,2]
[404681369,1770431442220,-551.37,0.00017886,2]
[404681370,1770431442229,-551.37,0.00017886,2]
[404681371,1770431442237,-551.37,0.00017886,2]
[404681372,1770431442246,-551.37,0.00017886,2]
[404681373,1770431442255,-551.37,0.00017886,2]
[404681374,1770431442264,-551.37,0.00017886,2]
[404681375,1770431442273,-551.37,0.00017886,2]
[404681376,1770431442282,-551.37,0.00017886,2]
[404681377,1770431442291,-551.37,0.00017886,2]
[404681378,1770431442300,-551.37,0.00017886,2]
[404681379,1770431442309,-551.37,0.00017886,2]
[404681380,1770431442318,-551.37,0.00017886,2]
[404681381,1770431442326,-551.37,0.00017886,2]
[404681382,1770431442335,-551.37,0.00017886,2]
[404681383,1770431442344,-551.37,0.00017886,2]
[404681384,1770431442353,-551.37,0.00017886,2]
[404681385,1770431442362,-551.37,0.00017886,2]
[404681386,1770431442371,-551.37,0.00017886,2]
[404681387,1770431442379,-551.37,0.00017886,2]
[404681388,1770431442388,-551.37,0.00017886,2]
[404681389,1770431442397,-551.37,0.00017886,2]
[404681390,1770431442405,-551.37,0.00017886,2]
[404681391,1770431442414,-551.37,0.00017886,2]
[404681392,1770431442423,-551.37,0.00017886,2]
[404681393,1770431442432,-551.37,0.00017886,2]
[404681394,1770431442440,-551.37,0.00017886,2]
[404681395,1770431442449,-700.13,0.00017886,2]
[404681396,1770431442458,-33304.9777,0.000179,2]
[404681397,1770431442467,-500.0,0.000179,2]
[404681398,1770431442475,-7304.26389751,0.000179,2]
[404681399,1770431442484,-9424.24989261,0.000179,2]
[404681400,1770431442493,-42371.44074996,0.000179,2]
[404681401,1770431442502,-1590.80562284,0.000179,3]
[404681402,1770431442510,-11012.6382741,0.000179,2]
[404681403,1770431442519,-174.05725526,0.000179,2]
[404681404,1770431442528,-2696.74076801,0.000179,2]
[404681405,1770431442537,-39040.77821125,0.000179,2]
[404681406,1770431442546,-1431.0,0.000179,2]
[404681407,1770431442555,-37023.8240355,0.00017953,2]
[404681408,1770431442564,-11969.5423821,0.00017953,2]
[404681409,1770431442573,-10104.4394449,0.00017953,2]
[404681410,1770431442582,-967.0,0.00017973,2]
[404681411,1770431442594,-150.22,0.0001799,2]
[404681412,1770431442603,-153.58,0.0001799,2]
[404681413,1770431442611,-204.48135771,0.0001799,2]
[404681414,1770431442620,-204.48135771,0.0001799,2]
[404681415,1770431442629,-204.48135771,0.0001799,2]
[404681416,1770431442638,-1602.23292904,0.00017994,2]
[404681417,1770431442647,-151.0,0.00017997,2]
[404681418,1770431442656,-203.077,0.00017999,2]
[404681419,1770431442665,-300.0,0.00017999,2]
[404681420,1770431442674,-666.0,0.00017999,2]
[404681421,1770431442690,-300.0,0.00017999,2]
[404681422,1770431442699,-417.14321601,0.00017999,2]
[404681423,1770431442707,-300.0,0.00017999,2]
[404681424,1770431442716,-666.0,0.00017999,2]
[404681425,1770431442725,-300.0,0.00017999,2]
[404681426,1770431442734,-943658.18336338,0.00018,2]
[404681427,1770431442743,-515618.8460258,0.00018,2]
[404681428,1770431442756,-689.72524371,0.00018,2]
[404681429,1770431442766,-1810.82933398,0.00018,2]
[404681430,1770431442780,-1530.06652458,0.00018,2]
[404681431,1770431442791,-862.91952571,0.00018,2]
[404681432,1770431442803,-5114.6506945,0.00018,2]
[404681433,1770431442815,-450.34283817,0.00018,2]
[404681436,1770431443599,-189139.41754761,0.00018,2]
[404681437,1770431443611,-580.63171811,0.00018,2]
[404681438,1770431443656,-9785.47891595,0.00018,2]
[404681439,1770431444505,-2880.04780582,0.00018,2]
[404681440,1770431444517,-475.776,0.00018,2]
[404681441,1770431444531,-5067.09449619,0.00018,2]
[404681442,1770431444545,-671.35980081,0.00018,2]
[404681443,1770431444558,-756.36239246,0.00018,2]
[404681444,1770431444571,-891.39,0.00018,2]
[404681454,1770431445952,-21454.90245532,0.00018,2]
[404681455,1770431445961,-432.60481996,0.00018,2]
[404681456,1770431445970,-812.18755796,0.00018,2]
[404681457,1770431445978,-1384.00984328,0.00018,2]
[404681458,1770431445986,-3110.30451518,0.00018,2]
[404681459,1770431446225,-538.8,0.00015528,2]
[404681460,1770431446232,-8623.46568243,0.00018,2]
[404681461,1770431446241,-397.665,0.00018,2]
[404681462,1770431446251,-3030.75271145,0.00018,2]
[404681491,1770431501977,230.0,0.00035616,120]
[404681492,1770431523620,215.0,0.0003561,120]
[404681498,1770432150284,5102.0559296,0.0003561,120]
[404681499,1770432262359,271.88101561,0.00035589,120]
[404681501,1770432407687,164.0,0.00035616,120]
[404681502,1770432422918,1162.17809074,0.0003561,120]
[404681503,1770432425143,246.91096585,0.0003561,120]
[404681504,1770432454139,-227.0,9.393e-05,2]
[404681505,1770432469133,-252.38748138,9.393e-05,2]
[404681506,1770432608194,-227.0,9.393e-05,2]
[404681512,1770432632079,-500.0,9.393e-05,2]
[404681514,1770432632089,-500.0,9.393e-05,2]
[404681515,1770432632099,-208.61010549,9.393e-05,2]
[404681516,1770432632111,-291.38989451,9.393e-05,2]
[404681517,1770432632121,-7.84488549,9.393e-05,2]
[404681518,1770432632133,-526.81328357,9.393e-05,2]
[404681519,1770432632142,-300.0,9.94e-05,2]
[404681520,1770432632151,-641.06794727,9.94e-05,2]
[404681521,1770432632163,-558.93205273,9.94e-05,2]
[404681522,1770432632173,-300.0,9.94e-05,2]
[404681523,1770432632182,-276.0,9.94e-05,2]
[404681524,1770432632192,-1000.0,9.941e-05,2]
[404681525,1770432632201,-504.76214666,9.941e-05,2]
[404681526,1770432632210,-772.57337687,9.941e-05,2]
[404681527,1770432632225,-228.04625164,9.941e-05,2]
[404681528,1770432632234,-506.26094738,0.00010332,2]
[404681529,1770432632244,-250.0,0.00010332,2]
[404681530,1770432632253,-142.30692681,0.00010489,2]
[404681531,1770432632272,-799.31821759,0.00010489,2]
[404681532,1770432632283,-59.07403899,0.00010489,2]
[404681533,1770432632293,-660.97596101,0.00010934,2]
[404681534,1770432632305,-1019.02403899,0.00010934,2]
[404681535,1770432632315,-390.0,0.00010934,2]
[404681536,1770432632324,-185.15796781,0.00012015,2]
[404681537,1770432632335,-213.37203219,0.00012015,2]
[404681538,1770432632345,-270.23796402,0.00012028,2]
[404681539,1770432632356,-534.15983067,0.00012028,2]
[404681549,1770432638663,-1546.60220531,0.00012028,2]
[404681550,1770432638673,-1000.0,0.00012059,2]
[404681551,1770432638683,-893.77,0.00012091,2]
[404681552,1770432638692,-250.0,0.00012411,2]
[404681553,1770432638701,-11012.6382741,0.00012575,2]
[404681554,1770432638711,-463.96486292,0.00012575,2]
[404681555,1770432638720,-401.63555993,0.00012583,2]
[404681556,1770432638731,-244236.1735982,0.00012593,2]
[404681557,1770432638742,-3604.8,0.00012593,2]
[404681558,1770432638754,-72115.11791252,0.00012593,2]
[404681559,1770432638766,-1185.97986445,0.00012593,2]
[404681560,1770432638778,-2936.5044634,0.00012593,2]
[404681561,1770432638798,-748.26893567,0.00012593,2]
[404681562,1770432640156,-209.40782889,0.00012592,2]
[404681563,1770432640166,-378.60149864,0.00012593,2]
[404681565,1770432640366,-500.0,0.00012592,2]
[404681566,1770432640376,-8097.50389652,0.00012593,2]
[404681567,1770432640525,-165.30180022,0.00012592,2]
[404681568,1770432640534,-2128132.79345723,0.00012593,2]
[404681583,1770432645729,-1062.6672319,0.00011233,2]
[404681584,1770432645745,-293.47590332,0.00011233,2]
[404681589,1770432646642,-2992.91686478,0.00011233,2]
[404681590,1770432646653,-197.60904166,0.00012592,2]
[404681591,1770432646664,-500.0,0.00012592,2]
[404681592,1770432646675,-157.08535246,0.00012592,2]
[404681593,1770432646686,-500.0,0.00012592,2]
[404681594,1770432646696,-500.0,0.00012592,2]
[404681595,1770432646707,-500.0,0.00012592,2]
[404681596,1770432646719,-500.0,0.00012592,2]
[404681597,1770432646731,-500.0,0.00012592,2]
[404681598,1770432646741,-500.0,0.00012592,2]
[404681599,1770432646752,-500.0,0.00012592,2]
[404681600,1770432646763,-500.0,0.00012592,2]
[404681601,1770432646774,-500.0,0.00012592,2]
[404681602,1770432646785,-400.82062206,0.00012592,2]
[404681603,1770432646797,-99.17937794,0.00012592,2]
[404681604,1770432646812,-500.0,0.00012592,2]
[404681605,1770432646824,-500.0,0.00012592,2]
[404681606,1770432646836,-500.0,0.00012592,2]
[404681607,1770432646848,-500.0,0.00012592,2]
[404681608,1770432646859,-500.0,0.00012592,2]
[404681609,1770432646871,-500.0,0.00012592,2]
[404681610,1770432646886,-557.11182269,0.00012592,2]
[404681611,1770432646897,-500.0,0.00012592,2]
[404681612,1770432646909,-500.0,0.00012592,2]
[404681613,1770432646919,-500.0,0.00012592,2]
[404681614,1770432646932,-500.0,0.00012592,2]
[404681615,1770432646944,-500.0,0.00012592,2]
[404681616,1770432646956,-500.0,0.00012592,2]
[404681617,1770432646966,-500.0,0.00012592,2]
[404681618,1770432646976,-57.74582004,0.00012593,2]
[404681619,1770432646988,-432.75,0.00012593,2]
[404681620,1770432647001,-3605.0,0.00012593,2]
[404681621,1770432647013,-412.93364697,0.00012593,2]
[404681622,1770432647025,-394.6099995,0.00012593,2]
[404681623,1770432647036,-4072.70910332,0.00012593,2]
[404681624,1770432647048,-363.11412869,0.00012593,2]
[404681625,1770432647064,-2160.0,0.00012593,2]
[404681634,1770432728635,327.60306447,0.0003546,120]
[404681639,1770432759918,5888.0,0.00035616,120]
[404681640,1770432763215,5888.0,0.00035616,120]
[404681641,1770432766528,5888.0,0.00035616,120]
[404681642,1770432770887,5888.0,0.00035616,120]
[404681643,1770432774186,5888.0,0.00035616,120]
[404681644,1770432777644,5888.0,0.00035616,120]
[404681645,1770432780952,4895.45174459,0.00035616,120]
[404681648,1770432823543,-180.07954251,9.393e-05,2]
[404681649,1770432854389,-300.0,9.392e-05,2]
[404681650,1770432901572,427.0,0.00035616,120]
[404681651,1770432903744,-150.0,0.00012675,3]
[404681652,1770432915678,-300.0,9.392e-05,2]
[404681653,1770432915706,-1200.0,9.392e-05,2]
[404681654,1770432961187,300.0,9.392e-05,2]
[404681658,1770433137242,346.4,0.00035616,120]
[404681659,1770433184791,-180.0795425,9.393e-05,2]
[404681660,1770433201312,1200.0,9.392e-05,2]
[404681661,1770433201966,150.0,9.392e-05,2]
[404681662,1770433203733,227.0,9.393e-05,2]
[404681665,1770433366718,306.38755626,0.00019,30]
[404681667,1770433791798,150.0,0.00035616,120]
[404681668,1770433796793,150.0,0.00035616,120]
[404681669,1770433801905,150.0,0.00035616,120]
[404681670,1770433806823,201.01743155,0.00035616,120]
[404681671,1770433811804,201.20441655,0.00035616,120]
[404681672,1770433816801,201.20441655,0.00035616,120]
[404681673,1770433832245,-150.0,9.392e-05,2]
[404681674,1770433832255,-143.30939767,9.392e-05,2]
[404681675,1770433832266,-156.69060233,9.392e-05,2]
[404681676,1770433832275,-1200.0,9.392e-05,2]
[404681677,1770433832286,-227.0,9.392e-05,2]
[404681678,1770433832295,-250.0,9.392e-05,2]
[404681679,1770433832305,-302.13678667,9.393e-05,2]
[404681680,1770433832316,-501.70650637,9.393e-05,2]
[404681681,1770433832325,-500.0,9.393e-05,2]
[404681682,1770433832334,-500.0,9.393e-05,2]
[404681683,1770433832343,-500.0,9.393e-05,2]
[404681684,1770433832352,-500.0,9.393e-05,2]
[404681685,1770433832361,-500.0,9.393e-05,2]
[404681686,1770433832371,-500.0,9.393e-05,2]
[404681687,1770433832380,-37.26388474,9.393e-05,2]
[404681688,1770433832391,-462.73611526,9.393e-05,2]
[404681689,1770433832400,-500.0,9.393e-05,2]
[404681690,1770433832409,-502.16762691,9.393e-05,2]
[404681691,1770433832419,-500.77184603,9.393e-05,2]
[404681692,1770433832428,-500.65217712,9.393e-05,2]
[404681693,1770433832437,-500.0,9.393e-05,2]
[404681694,1770433832446,-500.0,9.393e-05,2]
[404681695,1770433832455,-166.93388215,9.393e-05,2]
[404681696,1770433832465,-1968.89696187,9.694e-05,2]
[404681697,1770433832474,-501.15447601,9.941e-05,2]
[404681698,1770433832483,-1000.0,9.941e-05,2]
[404681699,1770433832492,-500.4722703,9.941e-05,2]
[404681700,1770433832501,-152.91836923,9.941e-05,2]
[404681701,1770433832511,-1000.0,9.941e-05,2]
[404681702,1770433832520,-500.74620686,9.941e-05,2]
[404681704,1770433832529,-1007.21748286,9.941e-05,2]
[404681706,1770433832538,-484.77015156,9.941e-05,2]
[404681708,1770433832550,-464.1267948,9.941e-05,2]
[404681710,1770433832559,-187.11648452,0.0001,2]
[404681712,1770433832568,-187.11648452,0.0001,2]
[404681714,1770433832578,-187.11648452,0.0001,2]
[404681716,1770433832587,-255.0,0.00010331,2]
[404681717,1770433832596,-213.0,0.00010331,2]
[404681718,1770433832605,-300.0,0.00010331,2]
[404681719,1770433832614,-472.9789746,0.00010331,2]
[404681720,1770433832623,-300.0,0.00010331,2]
[404681721,1770433832632,-250.0,0.00010331,2]
[404681722,1770433832641,-475.51068713,0.00010489,2]
[404681723,1770433832650,-1045.25,0.00011309,2]
[404681724,1770433832659,-150.0,0.00011319,2]
[404681725,1770433832669,-1968.89696187,0.00011354,2]
[404681726,1770433832678,-375.9879305,0.00011365,2]
[404681727,1770433832690,-57.0120695,0.00011365,2]
[404681728,1770433832699,-2242.9879305,0.00011477,2]
[404681729,1770433832709,-1887.52207154,0.00011477,2]
[404681730,1770433832720,-4261.8712743,0.00011477,2]
[404681731,1770433832731,-747.05872366,0.00011477,2]
[404681732,1770433832741,-925.75931862,0.00011503,2]
[404681733,1770433832752,-758.78,0.00011503,2]
[404681734,1770433832767,-2401.68068138,0.00011503,2]
[404681735,1770433832776,-1600.0,0.00011511,2]
[404681736,1770433832785,-283.82,0.00011562,2]
[404681737,1770433832794,-200.0,0.0001164,2]
[404681738,1770433832803,-280.2,0.00011679,2]
[404681739,1770433832814,-198.04,0.00011738,2]
[404681740,1770433832823,-3013.0,0.00011763,2]
[404681741,1770433832832,-2175.44,0.00011767,2]
[404681742,1770433832841,-600.0,0.00011784,2]
[404681743,1770433832850,-257.99393271,0.00012037,2]
[404681744,1770433832859,-224.30683848,0.00012037,2]
[404681745,1770433832869,-151.59,0.00012201,2]
[404681746,1770433832878,-150.0,0.0001221,2]
[404681747,1770433832887,-278.2575136,0.00012217,2]
[404681748,1770433832896,-294.91026601,0.00012217,2]
[404681749,1770433832906,-500.0,0.00012217,2]
[404681750,1770433832915,-3011.59,0.00012228,2]
[404681751,1770433832926,-150.0,0.00012265,2]
[404681752,1770433832935,-500.0,0.00012272,2]
[404681753,1770433832945,-157.54035197,0.00012311,2]
[404681754,1770433832955,-500.0,0.00012327,2]
[404681755,1770433832965,-267.62254994,0.00012381,2]
[404681756,1770433832976,-1000.0,0.00012392,2]
[404681757,1770433832986,-250.0,0.0001241,2]
[404681758,1770433832996,-151.0,0.00012422,2]
[404681759,1770433833007,-151.0,0.00012422,2]
[404681760,1770433833018,-151.0,0.00012422,2]
[404681761,1770433833031,-151.0,0.00012422,2]
[404681762,1770433833043,-151.0,0.00012422,2]
[404681763,1770433833054,-151.0,0.00012422,2]
[404681764,1770433833075,-151.0,0.00012422,2]
[404681765,1770433833085,-151.0,0.00012422,2]
[404681766,1770433833096,-151.0,0.00012422,2]
[404681767,1770433833107,-151.0,0.00012422,2]
[404681768,1770433833118,-151.0,0.00012422,2]
[404681769,1770433833128,-151.0,0.00012422,2]
[404681770,1770433833138,-151.0,0.00012422,2]
[404681771,1770433833149,-151.0,0.00012422,2]
[404681772,1770433833159,-151.0,0.00012422,2]
[404681773,1770433833169,-151.0,0.00012422,2]
[404681774,1770433833179,-151.0,0.00012422,2]
[404681775,1770433833189,-151.0,0.00012422,2]
[404681776,1770433833199,-151.0,0.00012422,2]
[404681777,1770433833208,-151.0,0.00012422,2]
[404681778,1770433833218,-151.0,0.00012422,2]
[404681779,1770433833228,-153.63735584,0.00012422,2]
[404681780,1770433833238,-736.0,0.00012501,2]
[404681781,1770433833252,-193.15841192,0.00012529,2]
[404681782,1770433833261,-506.15300166,0.0001258,2]
[404681783,1770433833271,-2992.3855955,0.00012587,2]
[404681784,1770433833281,-15205.87552381,0.00012587,2]
[404681785,1770433833398,-1085.11814229,0.00012587,2]
[404681786,1770433833407,-811.18881176,0.00012587,2]
[404681787,1770433833419,-1714.92104934,0.00012587,2]
[404681788,1770433833429,-1815.5716742,0.00012587,2]
[404681789,1770433833439,-63197.6644209,0.0001259,2]
[404681790,1770433833449,-162.6391342,0.0001259,2]
[404681791,1770433833458,-221.29321403,0.00012592,2]
[404681792,1770433833468,-927.03436804,0.00012592,2]
[404681793,1770433833477,-1742.33176359,0.00012592,2]
[404681794,1770433833487,-1274.18108693,0.00012592,2]
[404681795,1770433833497,-151.0,0.00012593,2]
[404681796,1770433833506,-151.58260952,0.00012593,2]
[404681797,1770433833515,-2.0,0.00012675,3]
[404681798,1770433833525,-9494.83713569,0.00012793,2]
[404681799,1770433833534,-299.99,0.00012893,2]
[404681800,1770433833544,-78.95354356,0.00012893,2]
[404681801,1770433833559,-865.07238644,0.00012893,2]
[404681802,1770433838363,-19061.53407,0.00012893,2]
[404681803,1770433838373,-310.98,0.00012893,2]
[404681804,1770433838382,-9999.99,0.00012893,2]
[404681805,1770433838392,-1140.78551,0.00012893,2]
[404681806,1770433838401,-151.0,0.00012893,2]
[404681807,1770433838411,-1600.0,0.00012949,2]
[404681808,1770433838421,-1968.89696187,0.00013014,2]
[404681809,1770433838430,-1988.38103982,0.00013075,2]